bitfinex/quotes_ETHUSD_20251201
["timestamp","ask_amount","ask_price","bid_price","bid_amount"]
[1764603211266,0.111,2764.4,2763.3,0.1893]
[1764603211465,0.111,2765.3,2764.3,3.62748762]
[1764603211684,0.244,2765.2,2764.3,0.00994732]
[1764603211831,0.244,2765.2,2764.3,3.62747165]
[1764603212174,0.244,2765.5,2764.4,0.36274717]
[1764603212466,0.59564074,2765.5,2764.3,3.62745775]
[1764603212651,0.35164074,2765.3,2764.3,3.62745775]
[1764603212851,0.466,2765.5,2764.3,7.24501011]
[1764603213253,0.244,2765.4,2764.3,0.00994732]
[1764603213454,0.59564074,2765.4,2764.3,7.24505204]
[1764603213642,0.244,2765.4,2764.4,0.74053677]
[1764603213841,0.53921072,2765.6,2764.4,0.74053677]
[1764603214046,0.244,2765.4,2764.4,0.74053677]
[1764603214443,0.12168256,2765.6,2765.3,0.1893]
[1764603214650,0.09209121,2765.6,2765.4,0.458]
[1764603214872,0.09209121,2765.6,2765.3,0.1893]
[1764603214873,0.09209121,2765.6,2765.0,0.6473]
[1764603215292,0.09209121,2765.6,2764.6,0.1893]
[1764603215444,0.09209121,2765.6,2764.7,10.85108691]
[1764603215773,0.09209121,2765.6,2764.8,1.10403869]
[1764603215941,0.09209121,2765.6,2764.8,0.458]
[1764603216137,0.09129121,2765.6,2764.9,0.458]
[1764603216974,0.244,2766.1,2764.9,0.458]
[1764603217391,3.61416316,2766.9,2764.9,0.458]
[1764603217392,0.35164074,2767.1,2765.0,14.46654608]
[1764603217544,0.244,2766.5,2765.0,14.46654608]
[1764603217743,0.244,2766.5,2765.1,1.97485461]
[1764603218156,0.244,2766.5,2765.2,0.458]
[1764603218482,10.95197883,2767.3,2765.0,7.23327304]
[1764603218483,0.2,2765.6,2765.0,7.23327304]
[1764603218642,0.2,2765.6,2765.2,0.458]
[1764603219043,0.244,2766.6,2765.2,0.458]
[1764603219250,0.244,2766.6,2765.2,0.702]
[1764603219554,0.244,2766.6,2765.3,14.46497664]
[1764603219753,0.244,2766.6,2765.4,1.51669766]
[1764603219956,0.244,2766.6,2765.4,1.97469766]
[1764603220280,4.28054492,2766.6,2765.0,0.458]
[1764603220639,0.244,2766.6,2765.0,0.458]
[1764603221241,0.35164074,2766.4,2765.0,0.458]
[1764603221485,0.244,2766.6,2765.1,14.46602292]
[1764603221687,0.244,2766.6,2765.2,2.2179964]
[1764603221887,0.244,2766.6,2765.2,2.6759964]
[1764603222046,0.244,2766.6,2765.3,0.458]
[1764603223080,0.244,2766.6,2765.4,0.244]
[1764603223600,0.244,2766.6,2765.5,18.7272132]
[1764603223800,0.244,2766.6,2765.6,1.89712132]
[1764603224006,0.35164074,2767.2,2765.6,2.35512132]
[1764603224185,0.422,2767.2,2765.6,2.35512132]
[1764603224386,0.35164074,2766.7,2765.7,0.458]
[1764603224681,0.35164074,2766.9,2765.8,0.28131213]
[1764603225080,0.35164074,2767.0,2765.8,0.73931213]
[1764603225305,0.355,2767.3,2765.9,0.458]
[1764603225490,0.355,2767.3,2766.0,10.84598697]
[1764603225690,0.355,2767.3,2766.1,1.49193317]
[1764603226003,0.355,2767.3,2766.1,1.94993317]
[1764603226270,4.32032804,2767.3,2766.1,1.94993317]
[1764603226409,4.39066332,2767.3,2766.1,1.94993317]
[1764603226708,0.35164074,2766.8,2766.0,7.23065798]
[1764603226873,0.422,2767.2,2766.0,10.84598697]
[1764603227075,0.422,2767.2,2766.0,3.61532899]
[1764603227076,0.35164074,2766.7,2766.0,3.61532899]
[1764603227383,0.422,2767.2,2765.9,7.23085572]
[1764603227599,0.35164074,2766.8,2765.9,10.84631542]
[1764603228578,0.35164074,2766.8,2765.9,7.23085572]
[1764603228787,4.4143989,2767.1,2765.9,10.84631542]
[1764603229005,0.80043266,2767.1,2765.9,10.84631542]
[1764603229205,0.357,2767.3,2765.9,5.08970831]
[1764603229408,0.35164074,2766.8,2765.9,3.61539602]
[1764603229709,0.35164074,2766.8,2765.0,0.001]
[1764603229909,0.35164074,2766.8,2765.0,7.23424476]
[1764603229910,0.35164074,2766.0,2765.0,7.23424476]
[1764603230113,0.244,2765.9,2765.0,3.61760824]
[1764603230320,0.45164074,2765.8,2765.0,0.001]
[1764603230505,0.35164074,2765.2,2765.0,0.001]
[1764603231183,0.244,2765.1,2765.0,0.001]
[1764603231388,0.59564074,2765.1,2765.0,0.001]
[1764603231716,4.63414647,2765.1,2765.0,0.001]
[1764603231932,1.13109811,2765.0,2764.3,0.00994732]
[1764603232142,1.88913992,2765.0,2764.3,0.00994732]
[1764603232281,0.35164074,2764.5,2764.3,0.00994732]
[1764603232716,0.244,2764.9,2764.3,7.24505121]
[1764603232915,0.244,2765.3,2764.4,1.37180512]
[1764603233121,0.421,2765.2,2764.3,0.00994732]
[1764603233308,0.35164074,2764.8,2764.3,3.62747885]
[1764603233485,3.96854824,2764.8,2764.3,0.00994732]
[1764603233818,0.77264074,2764.7,2764.3,0.00994732]
[1764603234030,0.59564074,2764.6,2764.3,0.00994732]
[1764603234385,0.421,2764.5,2764.3,0.00994732]
[1764603234982,0.35164074,2764.4,2764.3,0.00994732]
[1764603235185,0.77264074,2764.4,2764.3,0.00994732]
[1764603235414,0.77264074,2764.4,2763.5,1.69903581]
[1764603235415,0.72559411,2764.3,2763.5,1.69903581]
[1764603235615,1.38222976,2764.2,2763.5,1.69903581]
[1764603235801,7.89054386,2764.2,2763.5,1.69903581]
[1764603236004,0.4111,2764.1,2763.5,1.69903581]
[1764603236204,0.35164074,2763.8,2763.5,1.69903581]
[1764603236410,0.244,2764.2,2763.5,1.69903581]
[1764603236618,0.35164074,2763.9,2763.5,1.69903581]
[1764603236986,0.4111,2763.8,2763.5,1.69903581]
[1764603237186,7.47942858,2764.2,2763.5,1.69903581]
[1764603237187,0.244,2764.2,2763.5,1.69903581]
[1764603237382,0.4111,2764.1,2763.5,1.69903581]
[1764603237584,2.861334,2763.9,2763.5,1.69903581]
[1764603237792,0.75714474,2763.6,2763.5,1.69903581]
[1764603238021,1.72673885,2763.6,2763.5,1.28793581]
[1764603238207,3.39627773,2763.6,2763.5,1.28793581]
[1764603238414,2.2364224,2763.6,2763.5,1.28793581]
[1764603238609,1.33765408,2763.6,2763.5,1.28793581]
[1764603238811,14.58093132,2763.6,2763.5,1.28793581]
[1764603239024,19.86804066,2763.6,2763.5,1.28793581]
[1764603239231,15.22156426,2763.5,2761.9,0.0362]
[1764603239520,0.35164074,2762.7,2761.9,0.0362]
[1764603239689,0.72559411,2762.5,2761.9,0.0362]
[1764603239891,0.244,2762.6,2761.9,0.0362]
[1764603240131,0.35164074,2762.5,2761.9,3.65687386]
[1764603240313,0.35164074,2762.5,2761.9,3.65684477]
[1764603240314,0.244,2762.5,2761.9,3.65684477]
[1764603240899,12.41263469,2764.2,2762.4,0.1855]
[1764603241113,7.86764447,2763.7,2761.9,10.89823655]
[1764603241425,7.86764447,2763.7,2761.9,3.65688336]
[1764603241426,0.72559411,2763.0,2761.9,3.65688336]
[1764603241729,0.35164074,2762.5,2761.9,0.0362]
[1764603242227,7.86764447,2762.4,2761.9,0.0362]
[1764603242386,0.59564074,2762.3,2761.9,0.0362]
[1764603242587,0.245,2762.2,2761.9,0.0362]
[1764603242927,0.35164074,2762.0,2761.9,0.0362]
[1764603243530,7.86764447,2762.6,2761.9,0.0362]
[1764603243531,0.35164074,2762.9,2761.9,3.65689589]
[1764603243830,0.245,2762.8,2762.0,3.6205648]
[1764603244127,0.35164074,2762.6,2761.9,3.65689451]
[1764603244302,0.245,2762.8,2761.9,11.36728629]
[1764603244503,0.245,2762.8,2761.9,3.65688701]
[1764603244829,0.72559411,2762.5,2761.9,0.0362]
[1764603245049,0.92727371,2763.2,2761.9,7.2775608]
[1764603245353,0.35164074,2762.3,2761.9,0.0362]
[1764603245503,0.246,2762.2,2761.9,0.0362]
[1764603245834,0.246,2762.2,2761.9,3.65677516]
[1764603246003,0.246,2762.2,2761.9,8.28466923]
[1764603246198,0.246,2762.2,2761.9,7.74647105]
[1764603246533,0.246,2762.2,2761.9,0.0362]
[1764603247031,3.86632852,2762.2,2761.9,0.0372]
[1764603247231,0.35164074,2762.0,2761.9,0.0372]
[1764603247432,8.94487932,2762.0,2761.9,0.0372]
[1764603247742,14.72721157,2762.0,2761.9,0.0372]
[1764603247903,22.15404457,2762.0,2761.9,0.0372]
[1764603248102,21.08329557,2762.0,2761.9,0.0372]
[1764603248441,6.41930274,2761.9,2761.8,1.72520661]
[1764603248650,0.81755662,2761.9,2761.8,1.72520661]
[1764603248804,0.34589793,2762.0,2761.8,1.72520661]
[1764603249203,15.85340247,2761.9,2761.8,1.72520661]
[1764603249440,7.024562,2761.9,2761.8,1.72520661]
[1764603249647,0.72559411,2761.9,2761.8,1.72520661]
[1764603249818,1.07723485,2761.9,2761.8,1.72520661]
[1764603250014,10.64483792,2761.9,2761.8,1.72520661]
[1764603250336,0.72559411,2761.8,2761.0,0.00678588]
[1764603250506,8.59323858,2761.1,2761.0,0.00678588]
[1764603250706,9.19087932,2761.1,2761.0,0.00678588]
[1764603250907,13.15368051,2761.1,2761.0,0.00678588]
[1764603251328,0.50540193,2760.6,2759.6,4.09268604]
[1764603251514,0.72559411,2760.7,2759.6,0.469]
[1764603251726,1.48735119,2761.1,2758.8,3.8102061]
[1764603251727,0.246,2760.6,2759.8,0.469]
[1764603252116,0.246,2760.6,2760.0,0.1855]
[1764603252639,0.246,2760.6,2760.3,3.6226931]
[1764603252934,0.246,2760.6,2760.5,3.99318057]
[1764603253144,0.246,2760.6,2760.5,0.00761738]
[1764603253563,0.35164074,2761.5,2760.5,7.72163836]
[1764603253708,0.246,2761.4,2760.5,7.25264866]
[1764603254044,0.246,2761.3,2760.6,0.469]
[1764603254225,0.246,2761.2,2760.6,0.469]
[1764603255239,0.246,2761.2,2761.1,0.1855]
[1764603255818,0.246,2761.2,2760.7,0.1855]
[1764603256029,0.246,2761.2,2760.5,0.47661738]
[1764603256030,4.21926356,2761.2,2760.5,0.00761738]
[1764603256308,9.33659751,2760.8,2760.5,0.00761738]
[1764603256448,0.35164074,2760.6,2760.5,0.00761738]
[1764603256617,0.59764074,2760.6,2760.5,0.00761738]
[1764603256973,1.00314474,2760.6,2760.5,0.00761738]
[1764603257318,1.37709811,2760.6,2760.5,0.00761738]
[1764603257547,2.14860441,2760.6,2760.5,0.00761738]
[1764603257854,9.18395959,2760.6,2760.5,0.00761738]
[1764603258024,1.79696367,2760.6,2760.5,0.00761738]
[1764603258225,2.14860441,2760.6,2760.5,0.00761738]
[1764603258527,4.22004166,2760.6,2760.5,0.00761738]
[1764603258944,5.35113977,2760.6,2760.5,0.00761738]
[1764603259252,20.45194177,2760.6,2760.5,0.00761738]
[1764603259454,18.23731111,2760.5,2760.1,1.75137741]
[1764603259623,18.05571266,2760.2,2760.1,1.75137741]
[1764603260251,0.72559411,2760.1,2758.5,1.77754821]
[1764603260552,0.09989793,2759.1,2758.5,1.77754821]
[1764603260753,0.5,2759.0,2758.5,1.77754821]
[1764603260962,8.29742094,2758.6,2758.4,1e-08]
[1764603261263,8.27906018,2758.7,2755.3,8.07741694]
[1764603261264,2.658069,2758.2,2756.4,0.469]
[1764603262450,12.44992498,2755.2,2755.1,1.82988981]
[1764603262678,13.61961955,2755.2,2755.1,1.82988981]
[1764603262960,13.61961955,2755.2,2755.0,0.002]
[1764603262961,4.71419111,2755.1,2755.0,0.002]
[1764603263166,0.72559411,2754.9,2753.6,0.01050347]
[1764603263374,0.09989793,2754.0,2753.6,0.01050347]
[1764603263669,7.89191694,2753.7,2753.6,0.01050347]
[1764603263836,0.248,2753.7,2753.6,0.01050347]
[1764603264037,13.77965193,2753.7,2753.6,0.01050347]
[1764603264271,13.77965193,2753.7,2753.5,1.35606061]
[1764603264272,1.12723485,2753.6,2753.5,1.35606061]
[1764603264425,0.06345957,2751.0,2750.7,0.469]
[1764603264830,0.252,2753.0,2750.9,7.89191694]
[1764603265034,0.18810043,2753.6,2751.3,4.458275]
[1764603265327,0.1244,2754.6,2751.2,7.89191694]
[1764603265328,0.1244,2754.6,2752.9,0.1855]
[1764603265528,0.252,2754.5,2752.9,0.1855]
[1764603265729,0.35164074,2754.0,2752.9,0.6545]
[1764603265957,0.35164074,2754.0,2752.9,4.28703296]
[1764603266164,0.1244,2755.7,2753.9,0.1855]
[1764603266334,0.253,2755.6,2753.9,0.1855]
[1764603266534,0.35164074,2755.1,2754.0,0.469]
[1764603266734,0.35164074,2755.1,2753.5,0.001]
[1764603266735,7.89191694,2755.0,2753.5,0.001]
[1764603267065,5.129881,2755.5,2753.5,0.001]
[1764603267066,0.35164074,2754.3,2753.5,0.001]
[1764603267225,7.89191694,2754.6,2753.5,0.001]
[1764603267226,0.35164074,2754.0,2753.5,0.001]
[1764603267426,0.253,2754.2,2753.5,0.001]
[1764603267632,7.89191694,2755.0,2753.5,0.001]
[1764603267633,0.2489,2755.3,2753.6,7.26321904]
[1764603267866,1.10449371,2756.8,2753.6,7.26321904]
[1764603267867,2.478333,2755.6,2754.1,0.1855]
[1764603268163,0.253,2755.3,2754.1,0.1855]
[1764603268334,0.253,2755.5,2754.2,0.469]
[1764603268938,0.253,2756.0,2754.2,0.469]
[1764603269151,7.89191694,2755.1,2752.8,0.469]
[1764603269367,12.97713211,2753.6,2751.4,0.469]
[1764603269588,0.1244,2754.3,2749.9,0.1855]
[1764603269589,0.72559411,2752.5,2749.9,0.1855]
[1764603269727,6.173199,2751.6,2750.1,5.5446336]
[1764603269933,0.35164074,2750.7,2750.2,0.62974539]
[1764603270164,0.254,2750.8,2750.2,3.63609919]
[1764603270464,0.254,2750.8,2750.1,9.18083495]
[1764603270676,14.91209094,2750.7,2750.1,1.9084022]
[1764603270974,3.61288711,2750.7,2750.1,1.9084022]
[1764603271170,0.254,2750.8,2750.1,1.85155341]
[1764603271466,2.69129793,2750.2,2750.1,1.85155341]
[1764603271631,2.69129793,2750.2,2748.5,1.934573]
[1764603271632,0.14900522,2749.0,2748.5,1.934573]
[1764603271833,0.09989793,2748.6,2748.5,1.934573]
[1764603272050,0.255,2748.9,2748.5,1.87772421]
[1764603272967,0.87459933,2749.0,2748.5,1.87772421]
[1764603273285,0.87459933,2749.0,2745.0,2.022255]
[1764603273286,0.5,2747.0,2745.0,2.022255]
[1764603273490,7.89191694,2746.0,2745.0,2.022255]
[1764603273778,30.0,2746.7,2745.0,2.022255]
[1764603273779,9.48330093,2745.2,2745.1,1.2869146]
[1764603273998,11.04984833,2745.2,2745.1,0.19360022]
[1764603274150,11.04984833,2745.2,2743.5,2.0130854]
[1764603274151,30.0,2745.0,2743.5,1.1661717]
[1764603274484,0.405504,2743.4,2740.7,0.4528]
[1764603274634,0.405504,2743.4,2740.5,0.191]
[1764603274635,0.72559411,2742.8,2740.5,0.191]
[1764603274834,0.72559411,2742.8,2740.2,0.4528]
[1764603274835,11.06868374,2742.3,2740.0,27.18415]
[1764603275154,0.09989793,2741.9,2741.8,2e-07]
[1764603275362,8.76091847,2741.9,2741.8,2e-07]
[1764603275541,2.325328,2741.8,2740.3,0.4528]
[1764603275871,0.72559411,2741.3,2740.0,27.18415]
[1764603276070,1.87854255,2740.0,2735.1,2.01759166]
[1764603276229,1.87854255,2740.0,2732.0,3.66023266]
[1764603276230,6.36202534,2735.4,2735.3,0.05]
[1764603276430,6.36202534,2735.4,2735.2,1.09715088]
[1764603276431,0.19110664,2736.0,2735.2,1.09715088]
[1764603276673,7.89191694,2738.5,2733.6,15.08543249]
[1764603276674,0.1609,2739.3,2735.4,7.89191694]
[1764603276900,0.05,2739.7,2737.2,7.89191694]
[1764603277030,0.35242407,2740.0,2736.1,0.191]
[1764603277031,0.19094,2739.3,2736.1,0.191]
[1764603277233,2.185342,2739.1,2736.1,0.191]
[1764603277430,0.05,2739.7,2737.6,7.89191694]
[1764603277669,1.31,2742.4,2739.7,0.191]
[1764603277670,0.05,2740.9,2739.7,0.191]
[1764603277883,8.1278,2741.1,2739.7,0.191]
[1764603278171,8.1278,2741.1,2738.6,10.95450228]
[1764603278172,0.09989793,2740.9,2739.3,0.191]
[1764603278373,5.745971,2741.9,2739.3,0.191]
[1764603278555,0.4808,2741.8,2739.3,0.191]
[1764603278867,0.4808,2742.8,2741.0,7.89191694]
[1764603279068,0.4808,2742.8,2739.4,0.4528]
[1764603279069,0.40164074,2742.0,2741.1,8.68110863]
[1764603279272,0.05,2743.4,2741.9,7.89191694]
[1764603279570,3.64221802,2745.6,2742.7,0.191]
[1764603279571,0.14352194,2743.8,2742.7,0.191]
[1764603279752,0.02304997,2743.8,2743.0,7.2912869]
[1764603279961,0.09989793,2745.4,2743.7,7.89191694]
[1764603280183,0.5308,2746.4,2743.1,1.18192869]
[1764603280184,2.955806,2746.4,2743.5,0.72559411]
[1764603280476,0.9808,2747.0,2743.1,1.18192869]
[1764603280477,0.35164074,2746.5,2745.8,7.89191694]
[1764603280633,3.287933,2746.9,2745.9,0.4528]
[1764603280831,0.09989793,2746.6,2746.4,7.89191694]
[1764603281069,0.05,2748.9,2746.5,0.78919169]
[1764603281374,0.24865227,2750.0,2748.8,0.191]
[1764603281575,0.24865227,2750.0,2749.2,7.89191694]
[1764603281874,0.24865227,2750.0,2748.9,8.34471694]
[1764603282175,2.328602,2749.1,2747.5,7.89191694]
[1764603282335,0.09989793,2748.7,2747.5,7.89191694]
[1764603282535,0.297,2749.1,2745.9,14.56717284]
[1764603282536,4.73598774,2748.6,2745.9,7.28358642]
[1764603282734,4.73598774,2748.6,2744.4,0.4528]
[1764603282735,0.05,2748.2,2744.4,0.4528]
[1764603283044,0.35164074,2746.5,2744.9,7.89191694]
[1764603283266,6.358052,2746.4,2744.4,0.4528]
[1764603283479,0.09989793,2746.3,2744.5,0.83447169]
[1764603283681,0.35164074,2746.4,2744.9,7.28623992]
[1764603283975,0.35164074,2746.7,2744.7,7.28677086]
[1764603284196,0.297,2747.0,2743.4,0.488]
[1764603284197,3.70605311,2746.5,2743.4,0.191]
[1764603284335,0.35164074,2745.8,2743.9,0.4528]
[1764603284687,14.85851964,2747.0,2743.9,0.4528]
[1764603284688,0.05,2748.0,2744.4,7.89191694]
[1764603284899,0.35164074,2747.7,2745.0,0.72559411]
[1764603285105,0.002,2748.6,2746.0,0.72559411]
[1764603285397,0.002,2748.6,2747.2,7.89191694]
[1764603285398,0.0012,2748.6,2747.2,7.89191694]
[1764603285545,0.0012,2748.6,2747.3,0.78919169]
[1764603285739,0.0012,2748.6,2745.9,3.74170332]
[1764603285995,0.0012,2748.6,2746.0,15.01944236]
[1764603286132,11.374354,2748.5,2746.1,0.4528]
[1764603286333,0.298,2748.5,2746.1,1.59057818]
[1764603286551,0.0012,2748.6,2747.1,7.89191694]
[1764603286765,0.0012,2748.6,2747.6,7.89191694]
[1764603286968,0.0012,2748.6,2747.7,0.4528]
[1764603287196,0.09989793,2747.4,2745.8,0.4528]
[1764603287479,0.0012,2748.6,2745.8,0.4528]
[1764603287480,0.0012,2748.6,2746.5,7.89191694]
[1764603287688,0.0012,2748.6,2745.8,11.37857377]
[1764603287689,0.0012,2748.6,2746.7,7.28146502]
[1764603287839,0.0012,2748.6,2747.4,7.89191694]
[1764603288043,0.0012,2748.6,2747.9,7.89191694]
[1764603288361,0.0012,2748.6,2747.1,7.89191694]
[1764603288563,0.0012,2748.6,2746.9,0.4528]
[1764603288762,0.0012,2748.6,2747.4,7.89191694]
[1764603288974,0.0012,2748.6,2747.5,7.89191694]
[1764603289275,0.0012,2748.6,2747.5,0.4528]
[1764603289474,0.0012,2748.6,2747.6,0.4528]
[1764603289686,0.0012,2748.6,2747.7,10.9182225]
[1764603289979,0.0012,2748.6,2747.9,7.89191694]
[1764603290286,3.015091,2749.9,2747.8,0.4528]
[1764603290484,9.913501,2749.3,2747.8,0.4528]
[1764603290652,0.5706425,2749.4,2747.8,0.4528]
[1764603290978,0.24865227,2750.0,2748.0,7.89191694]
[1764603291166,0.24865227,2750.0,2747.8,0.4528]
[1764603291167,0.24865227,2750.0,2748.9,7.89191694]
[1764603291341,0.24865227,2750.0,2749.0,0.4528]
[1764603291885,0.05,2752.5,2749.0,0.4528]
[1764603291886,0.57048854,2751.7,2749.1,10.9126623]
[1764603292045,1.362,2752.8,2749.9,7.89191694]
[1764603292046,0.09989793,2751.9,2749.9,7.89191694]
[1764603292373,3.63291949,2752.7,2749.9,7.89191694]
[1764603292374,0.35164074,2752.3,2750.1,0.405504]
[1764603292674,0.35164074,2752.3,2750.0,1.5147858]
[1764603292675,0.1609,2753.1,2750.5,1.13109811]
[1764603292874,0.35164074,2752.8,2750.5,1.13109811]
[1764603293051,0.5702265,2753.1,2748.5,1.87823519]
[1764603293052,15.346021,2752.3,2749.8,0.4528]
[1764603293381,0.35164074,2751.6,2749.8,0.4528]
[1764603293566,5.952766,2751.5,2749.8,0.4528]
[1764603293767,0.4808,2752.2,2749.8,0.4528]
[1764603293768,0.35164074,2751.6,2749.9,7.27299174]
[1764603294078,2.388058,2751.5,2749.9,7.27299174]
[1764603294246,0.72559411,2751.3,2749.9,7.27299174]
[1764603294443,0.72559411,2750.7,2748.9,0.4528]
[1764603294648,8.61751105,2751.1,2747.0,3.64023201]
[1764603294649,0.72559411,2751.0,2748.0,10.91703054]
[1764603294849,0.35164074,2749.9,2748.1,1.09170305]
[1764603295156,0.35164074,2750.3,2748.4,7.89191694]
[1764603295559,0.35164074,2750.3,2748.1,1.81729716]
[1764603295560,9.854918,2750.2,2748.5,0.4528]
[1764603295748,2.172869,2750.2,2748.6,14.55286324]
[1764603295950,0.4808,2750.9,2748.6,18.19107905]
[1764603296144,3.991,2750.4,2748.7,0.4528]
[1764603296447,0.35164074,2750.5,2748.7,0.4528]
[1764603296771,6.062462,2750.3,2748.5,3.63830503]
[1764603296973,2.285368,2750.1,2748.2,0.4528]
[1764603297158,0.405504,2750.1,2748.2,0.4528]
[1764603297480,0.405504,2750.1,2746.8,0.297]
[1764603297481,0.405504,2748.9,2746.1,0.191]
[1764603297686,0.405504,2749.4,2744.9,14.57247984]
[1764603297687,0.35164074,2747.5,2744.9,14.57247984]
[1764603297888,21.004464,2747.2,2745.0,0.4528]
[1764603298194,0.35164074,2747.3,2745.0,0.4528]
[1764603298489,0.405504,2748.0,2745.0,0.4528]
[1764603298657,4.777401,2748.0,2745.0,0.4528]
[1764603298851,0.297,2748.1,2745.1,2.83566796]
[1764603299080,0.4808,2749.5,2746.4,9.68827978]
[1764603299286,0.19979587,2748.7,2746.5,0.6438]
[1764603299508,0.72559411,2748.5,2746.6,1.03320798]
[1764603299653,0.19979587,2748.7,2746.9,0.405504]
[1764603299982,0.297,2749.7,2747.0,0.405504]
[1764603300187,14.426847,2749.1,2747.0,0.4875]
[1764603300360,14.426847,2749.1,2746.7,3.64064379]
[1764603300361,0.1615,2747.1,2744.8,13.33153247]
[1764603300560,9.68827978,2746.8,2744.6,7.28703636]
[1764603300791,0.405504,2747.2,2744.9,0.4875]
[1764603301003,0.405504,2748.2,2745.4,0.72559411]
[1764603301306,0.405504,2748.2,2744.9,1.21309411]
[1764603301307,9.68727978,2749.3,2746.4,0.72559411]
[1764603301454,0.4872,2749.8,2745.5,1.04138739]
[1764603301455,2.883471,2749.7,2746.9,0.405504]
[1764603301655,2.883471,2749.7,2746.0,0.296]
[1764603301656,0.57107637,2750.5,2748.4,18.19240285]
[1764603301918,0.1615,2752.2,2749.4,0.72559411]
[1764603302198,0.92200482,2751.7,2749.9,9.68827978]
[1764603302408,0.09989793,2752.2,2749.9,9.68827978]
[1764603302552,0.09989793,2752.2,2749.6,0.405504]
[1764603302553,0.35164074,2752.2,2750.4,9.68827978]
[1764603302753,9.68827978,2753.5,2750.9,9.68827978]
[1764603302754,3.92838157,2753.1,2750.9,9.68827978]
[1764603302958,0.35164074,2753.0,2751.0,0.405504]
[1764603303152,0.57010925,2753.2,2751.6,9.68827978]
[1764603303454,0.57010925,2753.2,2750.9,1.37433198]
[1764603303455,0.296,2754.2,2752.2,9.68827978]
[1764603303791,0.296,2754.2,2751.8,7.26797004]
[1764603303792,0.09989793,2754.0,2751.8,7.26797004]
[1764603303974,0.35164074,2753.4,2751.8,0.4875]
[1764603304309,0.56978424,2752.2,2751.1,4.12240967]
[1764603304595,0.56978424,2752.2,2751.1,0.4875]
[1764603304893,0.56978424,2752.2,2751.3,0.405504]
[1764603305097,0.4872,2754.0,2751.5,0.405504]
[1764603305279,0.35164074,2753.8,2751.6,0.4875]
[1764603305492,9.68827978,2754.4,2751.6,0.4875]
[1764603305493,9.68827978,2755.1,2752.1,0.405504]
[1764603305801,3.62834353,2756.1,2753.0,9.68827978]
[1764603305802,0.296,2755.6,2753.0,9.68827978]
[1764603305957,9.68827978,2755.6,2753.1,0.405504]
[1764603306158,2.108337,2755.1,2753.0,0.1958]
[1764603306397,0.4872,2755.5,2753.0,0.1958]
[1764603306398,6.720587,2755.4,2753.0,0.1958]
[1764603306687,0.67703519,2755.5,2753.0,0.1958]
[1764603306688,2.253487,2755.2,2753.1,0.4875]
[1764603306863,2.253487,2755.2,2752.7,18.16398445]
[1764603306864,8.935448,2755.0,2752.7,7.26559378]
[1764603307066,0.72559411,2754.7,2752.7,4.12029689]
[1764603307266,0.72559411,2754.7,2752.7,7.75309378]
[1764603307468,0.295,2755.6,2752.9,0.405504]
[1764603307469,0.35164074,2755.1,2752.9,0.405504]
[1764603307664,0.39489793,2755.6,2753.3,7.26401046]
[1764603307884,0.39489793,2755.6,2753.3,14.52802092]
[1764603307885,6.257921,2755.5,2753.3,14.52802092]
[1764603308079,2.812791,2755.5,2753.4,0.4875]
[1764603308286,2.812791,2755.5,2753.4,1.98905209]
[1764603308494,7.658622,2755.4,2752.7,0.77530938]
[1764603308710,0.4872,2755.4,2752.8,0.4875]
[1764603309005,0.72559411,2755.1,2752.8,0.4875]
[1764603309304,10.47047978,2755.3,2751.6,0.1958]
[1764603309305,0.405504,2754.0,2751.6,0.1958]
[1764603309517,0.405504,2754.0,2750.1,0.1954]
[1764603309518,0.35164074,2753.3,2751.4,0.4875]
[1764603309664,0.35164074,2753.3,2750.1,0.1954]
[1764603309665,0.09989793,2752.7,2750.6,14.54228168]
[1764603309865,0.09989793,2752.8,2750.7,1.50297817]
[1764603310190,0.72559411,2752.5,2750.7,0.4875]
[1764603310394,0.72559411,2752.5,2750.6,10.90671126]
[1764603310395,0.4872,2753.8,2751.0,9.68827978]
[1764603310557,3.121485,2753.4,2751.0,9.68827978]
[1764603310761,1.07723485,2753.1,2751.1,0.4875]
[1764603311010,1.07723485,2753.1,2750.6,3.63557042]
[1764603311011,7.40794,2752.6,2750.6,3.63557042]
[1764603311164,0.4872,2753.5,2750.7,0.4875]
[1764603311504,0.294,2753.4,2750.7,0.4875]
[1764603312005,7.641238,2753.2,2751.8,0.405504]
[1764603312206,8.92241062,2754.2,2751.9,0.4875]
[1764603312389,0.72559411,2753.8,2751.9,0.4875]
[1764603312700,7.317939,2753.4,2751.0,0.4875]
[1764603312900,0.09989793,2752.9,2751.5,0.4875]
[1764603313102,0.4872,2753.4,2751.5,0.4875]
[1764603313269,0.72559411,2753.2,2751.5,0.4875]
[1764603313471,0.4872,2753.4,2751.5,0.4875]
[1764603313675,0.72559411,2752.2,2750.4,3.63577622]
[1764603313868,0.293,2752.1,2750.1,7.27241761]
[1764603314111,0.89698834,2752.8,2750.4,9.68827978]
[1764603314112,0.293,2752.8,2750.4,9.68827978]
[1764603314316,0.293,2752.8,2750.2,0.4875]
[1764603314607,0.293,2752.8,2749.3,0.1958]
[1764603314608,9.68827978,2752.2,2749.3,0.1958]
[1764603314809,9.68827978,2752.2,2748.8,3.63792728]
[1764603314810,16.082224,2751.5,2748.8,0.4875]
[1764603315024,0.293,2751.4,2748.9,0.4875]
[1764603315309,0.72559411,2751.3,2748.9,0.4875]
[1764603315506,3.30891585,2751.4,2748.9,0.4875]
[1764603315808,0.4872,2753.1,2750.1,9.68827978]
[1764603315975,0.35164074,2752.1,2750.3,0.405504]
[1764603316315,0.64464074,2752.1,2750.5,0.405504]
[1764603316603,0.293,2752.5,2750.5,0.405504]
[1764603316807,0.293,2752.5,2750.7,0.405504]
[1764603317211,0.293,2752.5,2751.1,0.405504]
[1764603317507,0.293,2752.5,2751.2,1.00937838]
[1764603317670,0.293,2752.5,2751.0,0.405504]
[1764603317875,0.4872,2753.8,2751.2,1.13109811]
[1764603318088,0.293,2753.8,2751.5,1.13109811]
[1764603318312,0.293,2753.8,2751.2,2.30495484]
[1764603318313,0.64464074,2753.8,2751.2,2.30495484]
[1764603318573,9.68827978,2753.1,2749.3,3.63721274]